bitfinex-derivatives/quotes_SOLF0:USTF0_20251125
["timestamp","ask_amount","ask_price","bid_price","bid_amount"]
[1764089118802,1.35,136.16,136.1,3.0]
[1764089119309,1.35,136.14,136.1,3.0]
[1764089119898,0.05586338,136.13,136.11,0.04846885]
[1764089120105,0.05586338,136.13,136.11,3.04846885]
[1764089121306,1.40586338,136.13,136.11,0.04846885]
[1764089121913,8.02106338,136.13,136.11,0.04846885]
[1764089122115,1.40586338,136.13,136.11,0.04846885]
[1764089122302,0.05586338,136.13,136.11,0.04846885]
[1764089122615,0.05586338,136.13,136.11,3.04846885]
[1764089123111,0.05586338,136.13,136.11,0.04846885]
[1764089125513,0.05586338,136.13,136.11,3.04846885]
[1764089126614,0.05586338,136.13,136.11,0.04846885]
[1764089128115,1.40586338,136.13,136.11,0.04846885]
[1764089128616,0.05586338,136.13,136.11,0.04846885]
[1764089129116,0.05586338,136.13,136.11,3.04846885]
[1764089130317,1.40586338,136.13,136.11,0.04846885]
[1764089130614,8.02096338,136.13,136.11,0.04846885]
[1764089131816,0.05586338,136.13,136.11,3.04846885]
[1764089133330,6.67096338,136.13,136.11,0.04846885]
[1764089133528,104.2664,136.11,136.03,3.0]
[1764089134030,104.2741,136.1,136.03,3.0]
[1764089134433,1.40189034,136.08,136.05,0.05271311]
[1764089134627,1.40189034,136.08,136.05,3.05271311]
[1764089134831,0.05189034,136.08,136.05,3.05271311]
[1764089135331,6.66969034,136.08,136.05,3.05271311]
[1764089136237,6.6181,136.07,136.05,3.05271311]
[1764089138125,0.05189034,136.08,136.05,3.05271311]
[1764089139632,6.6181,136.07,136.05,3.05271311]
[1764089140736,7.9681,136.07,136.05,0.05271311]
[1764089141134,6.6181,136.07,136.05,3.05271311]
[1764089142228,1.35,136.06,136.05,0.05271311]
[1764089142532,1.35,136.05,136.02,3.0]
[1764089142737,1.35,136.05,136.01,24.68435952]
[1764089142937,1.35,136.05,136.01,3.0]
[1764089143537,1.39775005,136.04,136.02,0.04776247]
[1764089144347,8.01725005,136.04,136.02,0.04776247]
[1764089144643,1.35,136.03,135.99,3.0]
[1764089144843,1.35,136.03,135.99,24.59928921]
[1764089145042,1.35,136.01,135.94,3.0]
[1764089145740,0.05126878,135.99,135.96,3.05529595]
[1764089145942,0.05299456,135.99,135.96,3.04863868]
[1764089146146,1.40299456,135.99,135.96,3.04863868]
[1764089146348,0.05299456,135.99,135.96,3.04863868]
[1764089147542,0.05299456,135.99,135.98,3.03]
[1764089149046,0.05299456,135.99,135.97,3.03]
[1764089149540,1.38299456,135.99,135.96,0.04863868]
[1764089149738,1.38299456,135.99,135.96,3.07863868]
[1764089150747,0.05299456,135.99,135.96,3.07863868]
[1764089151141,0.05299456,135.99,135.97,3.03]
[1764089154546,0.05299456,135.99,135.96,0.04863868]
[1764089154750,1.38299456,135.99,135.96,3.07863868]
[1764089155648,8.00499456,135.99,135.96,3.07863868]
[1764089156153,1.33,135.98,135.96,0.04863868]
[1764089156344,7.9524,135.98,135.96,0.04863868]
[1764089157357,1.33,135.97,135.96,0.04863868]
[1764089158057,7.9534,135.96,135.92,3.03]
[1764089158748,1.33,135.96,135.92,3.03]
[1764089159149,0.04653736,135.95,135.93,0.05008733]
[1764089160250,102.988,136.02,135.93,0.05008733]
[1764089160251,102.9583,136.06,135.93,106.13168733]
[1764089160447,1.38,136.04,135.94,3.03]
[1764089160752,1.38,136.03,135.94,3.03]
[1764089160949,8.0214,136.0,135.94,9.6542]
[1764089161348,1.44691701,135.98,135.96,0.0557272]
[1764089161549,1.45207598,135.98,135.96,0.0557272]
[1764089162255,0.05207598,135.98,135.96,3.0957272]
[1764089162559,0.05207598,135.98,135.96,0.0557272]
[1764089163453,0.05207598,135.98,135.96,3.0957272]
[1764089165859,0.05207598,135.98,135.97,3.04]
[1764089166360,1.4,136.04,135.97,3.04]
[1764089166561,1.45,136.03,135.97,3.04]
[1764089166756,104.4356,136.02,135.97,3.04]
[1764089167056,1.45,136.01,135.97,3.04]
[1764089167266,0.05212069,136.0,135.98,0.05617482]
[1764089167761,8.0719,135.99,135.98,0.05617482]
[1764089168857,6.6219,135.99,135.98,0.05617482]
[1764089169655,1.50212069,136.0,135.98,0.05617482]
[1764089170368,8.12362069,136.0,135.98,0.05617482]
[1764089170558,1.45,135.99,135.98,0.05617482]
[1764089171855,1.45,135.99,135.92,3.04]
[1764089172658,1.45,135.99,135.92,9.6652]
[1764089172863,0.05613313,135.97,135.94,3.0875903]
[1764089173061,1.50613313,135.97,135.94,3.0875903]
[1764089174656,0.05613313,135.97,135.94,9.7117903]
[1764089174852,0.05613313,135.97,135.95,3.04]
[1764089176361,0.05613313,135.97,135.96,3.04]
[1764089176962,0.05613313,135.97,135.95,9.6637]
[1764089177161,0.05613313,135.97,135.96,2.96]
[1764089178462,1.45,136.03,135.96,2.96]
[1764089178660,1.45,136.03,135.99,2.96]
[1764089179550,0.04940244,136.02,136.0,0.05259845]
[1764089179753,1.45,136.01,136.0,0.0518145]
[1764089180258,1.45,136.0,135.93,2.72369467]
[1764089180463,1.45,136.0,135.94,2.96]
[1764089180760,1.45,135.98,135.94,2.96]
[1764089181154,0.04787282,135.97,135.96,2.96]
[1764089181360,0.04926451,135.98,135.96,2.96]
[1764089181968,0.04926451,135.98,135.96,5.68369467]
[1764089182166,1.45,136.03,135.97,2.96]
[1764089182350,1.45,136.03,135.99,2.96]
[1764089182754,1.5,136.02,135.97,2.96]
[1764089183561,0.05360443,136.01,135.98,3.01482096]
[1764089183967,1.55360443,136.01,135.98,0.05482096]
[1764089184668,1.5,136.0,135.98,0.05482096]
[1764089185070,8.1215,136.0,135.98,0.05482096]
[1764089185363,1.5,135.99,135.98,0.05482096]
[1764089185569,6.6243,135.94,135.91,2.96]
[1764089185869,1.5,135.93,135.87,2.72369467]
[1764089186167,1.5,135.93,135.84,2.96]
[1764089186168,8.127,135.89,135.84,2.96]
[1764089186470,8.127,135.89,135.85,2.96]
[1764089186667,0.05279171,135.88,135.86,3.01451472]
[1764089186862,0.05279171,135.88,135.86,5.73820939]
[1764089187859,0.05279171,135.88,135.87,2.96]
[1764089190380,1.5,135.95,135.88,2.96]
[1764089190871,6.6249,135.93,135.88,2.96]
[1764089191070,1.5,135.95,135.88,2.96]
[1764089191264,102.9871,136.02,135.86,109.59897106]
[1764089191265,104.5688,135.99,135.9,2.96]
[1764089191666,0.04794444,135.96,135.93,3.01318426]
[1764089192179,6.67144444,135.96,135.93,3.01318426]
[1764089194569,0.04794444,135.96,135.93,3.01318426]
[1764089196371,0.04794444,135.96,135.95,2.96]
[1764089196563,104.5471,136.02,135.95,2.96]
[1764089196564,1.56,136.02,135.95,2.96]
[1764089197275,1.6,136.05,135.96,2.96]
[1764089197576,0.04741318,136.02,135.99,3.00869462]
[1764089198364,1.64741318,136.02,135.99,3.00869462]
[1764089198570,1.64741318,136.02,135.99,0.04869462]
[1764089205076,1.6,136.01,135.99,0.04869462]
[1764089205470,8.2211,136.01,135.99,0.04869462]
[1764089209275,1.6,136.0,135.99,0.04869462]
[1764089209470,1.6,136.0,135.94,2.89]
[1764089210179,1.6,135.98,135.94,2.89]
[1764089210578,1.65646302,135.97,135.95,0.0502737]
[1764089210771,1.65646302,135.97,135.91,2.89]
[1764089210772,1.6,135.96,135.91,2.89]
[1764089211279,103.07986302,135.97,135.91,2.89]
[1764089211280,8.2239,135.95,135.91,2.89]
[1764089211485,1.6,135.95,135.91,2.89]
[1764089211977,1.6,135.95,135.92,0.05083183]
[1764089212170,1.6,135.95,135.92,2.94083183]
[1764089212372,0.05646302,135.97,135.95,2.89]
[1764089213484,6.67926302,135.97,135.95,2.89]
[1764089214680,0.05646302,135.97,135.95,2.89]
[1764089216482,152.80467,136.07,135.96,2.89]
[1764089216483,104.626,136.05,135.96,2.89]
[1764089216877,6.621,136.01,135.96,2.89]
[1764089217184,6.621,136.01,135.96,9.5132]
[1764089217487,6.67226881,136.0,135.97,2.94383951]
[1764089218178,6.6219,135.99,135.97,2.94383951]
[1764089218488,0.05086881,136.0,135.97,2.94383951]
[1764089218985,6.67226881,136.0,135.97,2.94383951]
[1764089219482,0.05086881,136.0,135.97,2.94383951]
[1764089220492,1.66,136.06,135.98,2.89]
[1764089220881,27.86457,136.07,135.98,2.89]
[1764089221185,27.86457,136.07,136.02,2.89]
[1764089221387,26.88691096,136.07,136.06,2.89]
[1764089222492,0.00476616,136.08,136.07,6.618]
[1764089223485,0.00476616,136.08,136.06,0.04869889]
[1764089223685,3.09476616,136.08,136.0,6.48817509]
[1764089223888,3.09,136.08,136.0,109.48517509]
[1764089224188,3.09,136.08,136.0,6.48817509]
[1764089224793,3.14538464,136.05,136.03,0.05278017]
[1764089225092,0.05538464,136.05,136.03,0.05278017]
[1764089225991,3.14538464,136.05,136.03,0.05278017]
[1764089226290,0.05538464,136.05,136.03,0.05278017]
[1764089227288,3.14538464,136.05,136.03,0.05278017]
[1764089227892,0.05538464,136.05,136.03,0.05278017]
[1764089229094,0.05538464,136.05,136.03,6.67258017]
[1764089229991,3.14538464,136.05,136.03,0.05278017]
[1764089230696,3.09,136.12,136.03,0.05278017]
[1764089230896,3.09,136.12,136.02,109.47007509]
[1764089231092,3.09,136.12,136.05,6.6187]
[1764089231597,3.09,136.09,136.07,0.04804042]
[1764089231893,3.14525876,136.09,136.07,0.0471316]
[1764089237390,3.14525876,136.09,136.01,25.28]
[1764089237587,6.6176,136.08,136.01,25.28]
[1764089237791,2.98,136.07,136.01,25.28]
[1764089238300,0.05168066,136.05,136.03,0.05561999]
[1764089238892,0.05168066,136.05,136.03,6.67541999]
[1764089242288,2.98,136.13,136.05,102.9584]
[1764089242503,2.98,136.13,136.07,102.9445]
[1764089243000,2.98,136.13,136.1,6.6165]
[1764089243399,3.0303289,136.13,136.1,6.66791562]
[1764089244203,3.0303289,136.13,136.1,0.05141562]
[1764089246802,9.6454289,136.13,136.1,0.05141562]
[1764089247002,2.98,136.12,136.1,0.05141562]
[1764089250898,0.0503289,136.13,136.1,0.05141562]
[1764089250899,3.0303289,136.13,136.1,0.05141562]
[1764089251399,0.0503289,136.13,136.1,0.05141562]
[1764089251602,0.0503289,136.13,136.1,1.51141562]
[1764089252209,0.0503289,136.13,136.1,0.05141562]
[1764089254011,0.0503289,136.13,136.1,6.66771562]
[1764089254699,2.98,136.21,136.12,11.28146755]
[1764089254902,2.98,136.21,136.13,102.9014]
[1764089255210,216.2104,136.28,136.15,11.28146755]
[1764089255211,2.98,136.27,136.15,11.28146755]
[1764089255708,0.0525929,136.22,136.2,0.04866392]
[1764089256008,2.98,136.21,136.2,0.04866392]
[1764089257010,0.05338794,136.22,136.2,0.04866392]
[1764089257616,3.03338794,136.22,136.2,0.04866392]
[1764089258810,2.98,136.21,136.11,25.26]
[1764089259013,2.98,136.2,136.11,25.26]
[1764089259226,2.98,136.2,136.12,6.6154]
[1764089259415,2.98,136.2,136.11,25.26]
[1764089259915,0.05041249,136.17,136.14,0.05450546]
[1764089261308,0.05041249,136.17,136.14,29.07295667]
[1764089261511,0.05041249,136.17,136.14,6.66870546]
[1764089263117,3.03041249,136.17,136.14,0.05450546]
[1764089264913,2.98,136.16,136.14,0.05450546]
[1764089265414,2.98,136.16,136.09,25.24]
[1764089265415,2.98,136.15,136.09,25.24]
[1764089266318,0.0539173,136.13,136.11,0.05566903]
[1764089267107,0.0539173,136.13,136.11,6.67156903]
[1764089269317,0.0539173,136.13,136.11,0.05566903]
[1764089269318,3.2439173,136.13,136.11,0.05566903]
[1764089270919,9.8590173,136.13,136.11,0.05566903]
[1764089271116,3.19,136.12,136.04,11.28146755]
[1764089271317,3.19,136.12,136.03,6.6196]
[1764089271723,9.8061,136.11,136.03,6.6196]
[1764089272021,3.19,136.11,136.04,6.6194]
[1764089272218,0.04636143,136.08,136.06,0.05239639]
[1764089272522,0.04636143,136.08,136.06,6.67069639]
[1764089273334,0.04636143,136.08,136.06,0.05239639]
[1764089274521,3.23636143,136.08,136.06,0.05239639]
[1764089276718,0.04636143,136.08,136.06,0.05239639]
[1764089277829,3.23636143,136.08,136.06,0.05239639]
[1764089278231,9.85396143,136.08,136.06,0.05239639]
[1764089278430,3.19,136.07,136.06,0.05239639]
[1764089279530,2.94,136.04,136.01,22.44993565]
[1764089279727,2.94,136.04,136.0,25.24]
[1764089279928,2.94,136.04,135.95,99.38146755]
[1764089280127,9.5605,136.02,135.96,6.623]
[1764089280531,2.94,135.99,135.98,0.05510534]
[1764089280827,0.05604037,136.0,135.98,0.05510534]
[1764089281628,0.05604037,136.0,135.98,6.67730534]
[1764089282230,9.5591,136.05,136.0,6.6213]
[1764089283227,2.94,136.05,136.0,6.6213]
[1764089283434,0.04776387,136.04,136.01,0.05003758]
[1764089285029,0.04776387,136.04,135.96,167.74929792]
[1764089285030,2.94,136.01,135.93,17.77597286]
[1764089285230,2.94,136.01,135.92,25.26]
[1764089285630,2.94,136.01,135.93,6.6246]
[1764089285631,6.622,135.99,135.93,6.6246]
[1764089286029,0.0542935,135.97,135.95,0.05070702]
[1764089286229,2.9942935,135.97,135.95,0.05070702]
[1764089286635,0.0542935,135.97,135.95,0.05070702]
[1764089293431,105.9733,135.96,135.91,62.0]
[1764089293637,2.94,135.94,135.8,132.20214041]
[1764089294041,2.94,135.89,135.82,1.28058878]
[1764089294349,0.04773256,135.87,135.84,0.04758291]
[1764089294648,2.94,135.93,135.84,0.04758291]
[1764089294837,2.94,135.93,135.83,20.72]
[1764089295237,6.6261,135.92,135.83,20.72]
[1764089295436,2.94,135.93,135.82,1.28058878]
[1764089295638,0.0509588,135.89,135.86,0.0496196]
[1764089296046,6.6784588,135.89,135.86,0.0496196]
[1764089296250,106.0872588,135.89,135.86,25.3696196]
[1764089296547,9.5681,135.88,135.86,0.0496196]
[1764089296843,103.1335,135.84,135.75,6.49878001]
[1764089297045,6.6319,135.8,135.78,1.2807773]
[1764089297240,103.1542,135.81,135.79,25.32]
[1764089297843,103.165,135.8,135.79,0.05595381]
[1764089298040,103.165,135.8,135.79,25.37595381]
[1764089298455,112.7468,135.8,135.79,0.05595381]
[1764089299351,9.5818,135.8,135.79,0.05595381]
[1764089299545,6.6331,135.78,135.76,25.32]
[1764089300240,6.6331,135.78,135.77,25.32]
[1764089300838,6.6331,135.78,135.76,0.0551802]
[1764089301043,6.6331,135.78,135.76,25.3751802]
[1764089301247,112.7607,135.78,135.76,0.0551802]
[1764089301941,106.1276,135.78,135.69,21.8327694]
[1764089302142,106.1181,135.8,135.71,7.78040635]
[1764089302340,106.1201,135.79,135.71,7.78040635]
[1764089302942,0.04641174,135.76,135.71,7.78040635]
[1764089304545,2.99641174,135.76,135.72,25.34]
[1764089304744,0.04641174,135.76,135.71,68.49878001]
[1764089304944,0.04641174,135.76,135.72,25.34]
[1764089305144,2.99641174,135.76,135.69,22.99417025]
[1764089305344,2.99641174,135.76,135.7,31.83878001]
[1764089305845,0.04641174,135.76,135.73,6.49878001]
[1764089308152,0.04641174,135.76,135.74,62.0]
[1764089309151,0.04641174,135.76,135.73,6.49878001]
[1764089309953,2.99641174,135.76,135.7,13.13518001]
[1764089310152,2.99641174,135.76,135.74,25.34]
[1764089311262,2.99641174,135.76,135.73,25.34]
[1764089311757,0.04641174,135.76,135.73,25.34]
[1764089312350,0.04641174,135.76,135.73,31.83878001]
[1764089312852,0.04641174,135.76,135.74,31.9745]
[1764089313360,103.1204,135.86,135.79,6.6318]
[1764089313361,2.95,135.86,135.79,6.6318]
[1764089313562,2.95,135.86,135.85,1.76087759]
[1764089313861,2.95,135.86,135.8,128.4987]
[1764089314250,2.95,135.86,135.83,6.6301]
[1764089314447,3.00455976,135.86,135.83,6.68582807]
[1764089315458,3.00455976,135.86,135.83,25.41572807]
[1764089318270,3.00455976,135.86,135.83,0.05572807]
[1764089318559,3.00455976,135.86,135.83,25.41572807]
[1764089318956,3.00455976,135.86,135.83,0.05572807]
[1764089319164,3.00455976,135.86,135.83,25.41572807]
[1764089319361,3.00455976,135.86,135.83,0.05572807]
[1764089323261,3.00455976,135.86,135.83,6.68592807]
[1764089325167,3.00455976,135.86,135.81,31.9711]
[1764089325363,3.00455976,135.86,135.81,6.6311]
[1764089325667,3.00455976,135.86,135.81,31.9711]
[1764089326163,3.00455976,135.86,135.81,25.34]
[1764089326957,3.00455976,135.86,135.83,6.6301]
[1764089330156,3.00455976,135.86,135.81,25.34]
[1764089330157,3.00455976,135.86,135.84,6.6298]
[1764089330360,0.05455976,135.86,135.84,6.6298]
[1764089330865,3.18,135.92,135.91,6.6264]
[1764089331066,3.18,135.94,135.9,25.34]
[1764089331969,3.18,135.92,135.91,0.05599101]
[1764089338664,3.18,135.92,135.91,25.37599101]
[1764089340378,3.18,135.92,135.86,6.6284]
[1764089340679,3.18,135.9,135.78,103.1735]
[1764089340879,3.18,135.9,135.79,25.32]
[1764089341081,9.8079,135.88,135.79,6.6319]
[1764089341269,3.18,135.87,135.77,109.67998001]
[1764089341466,0.05159122,135.83,135.78,25.32]
[1764089341773,3.07159122,135.83,135.79,31.9521]
[1764089341975,3.07159122,135.83,135.76,6.49878001]
[1764089342168,0.05159122,135.83,135.8,25.32]
[1764089342482,0.05159122,135.83,135.81,6.6311]
[1764089344577,103.06,135.94,135.83,103.1368]
[1764089344578,3.02,135.92,135.83,103.1368]
[1764089344775,3.02,135.92,135.84,25.32]
[1764089345285,3.02,135.9,135.82,109.64048001]
[1764089345578,0.0539527,135.87,135.85,25.37454646]
[1764089346187,0.0539527,135.87,135.85,32.00374646]
[1764089346674,3.0739527,135.87,135.86,25.32]
[1764089346876,3.0739527,135.87,135.85,6.68374646]
[1764089347076,3.0739527,135.87,135.85,32.00374646]
[1764089347779,3.0739527,135.87,135.85,25.37454646]
[1764089347974,3.0739527,135.87,135.85,0.05454646]
[1764089351585,3.0739527,135.87,135.85,6.68364646]
[1764089351785,3.0739527,135.87,135.85,0.05454646]
[1764089353093,3.0739527,135.87,135.82,25.32]
[1764089353493,3.02,135.84,135.77,6.49878001]
[1764089353795,3.02,135.84,135.78,25.32]
[1764089354187,3.02,135.81,135.78,25.32]
[1764089355194,0.05577734,135.82,135.78,25.32]
[1764089356187,0.05577734,135.82,135.8,6.6317]
[1764089356891,3.02,135.88,135.82,6.6305]
[1764089357092,3.02,135.88,135.83,25.32]
[1764089357790,2.98,135.86,135.83,25.32]
[1764089358000,3.03074953,135.86,135.83,25.37577734]
[1764089358297,3.03074953,135.86,135.83,0.05577734]
[1764089359002,2.98,135.85,135.83,0.05577734]
[1764089359596,9.6095,135.85,135.83,0.05577734]
[1764089359799,2.98,135.84,135.8,25.32]
[1764089360101,2.98,135.84,135.76,11.32120912]
[1764089360304,2.98,135.82,135.78,6.6327]
[1764089360802,0.05404558,135.81,135.78,6.6327]
[1764089361204,0.05404558,135.81,135.79,6.6323]
[1764089361802,0.05404558,135.81,135.77,31.9528]
[1764089362202,0.05404558,135.81,135.77,6.6328]
[1764089362503,0.05404558,135.81,135.78,25.32]
[1764089362704,0.05404558,135.81,135.78,31.9527]
[1764089363098,0.05404558,135.81,135.79,25.32]
[1764089364100,0.05404558,135.81,135.78,6.6327]
[1764089364300,0.05404558,135.81,135.79,25.32]
[1764089365303,2.98,135.88,135.79,36.64120912]
[1764089365799,103.0885,135.9,135.79,36.64120912]
[1764089365800,2.98,135.85,135.79,25.32]
[1764089366196,2.98,135.85,135.81,6.68524558]
[1764089366397,0.05099368,135.83,135.82,25.32]
[1764089367501,3.03099368,135.83,135.81,0.05404558]
[1764089368203,2.98,135.82,135.81,0.05404558]
[1764089369107,6.68149368,135.83,135.81,0.05404558]
[1764089369308,9.66149368,135.83,135.81,0.05404558]
[1764089370105,0.05099368,135.83,135.81,0.05404558]
[1764089370506,0.05099368,135.83,135.81,6.68534558]
[1764089371407,0.05099368,135.83,135.82,6.6308]
[1764089371709,8.44945628,135.92,135.83,103.1374]
[1764089372012,2.98,135.9,135.86,6.6285]
[1764089372200,2.98,135.9,135.86,31.9485]
[1764089372507,2.98,135.89,135.86,31.9485]
[1764089372709,3.03034334,135.89,135.86,32.00224502]
[1764089373110,9.65774334,135.89,135.86,25.37374502]
[1764089373309,9.65774334,135.89,135.86,0.05374502]
[1764089373310,2.98,135.88,135.86,0.05374502]
[1764089373711,9.6079,135.88,135.86,0.05374502]
[1764089373911,2.98,135.87,135.86,0.05374502]
[1764089374213,9.65784334,135.89,135.86,0.05374502]
[1764089374408,0.05034334,135.89,135.86,0.05374502]
[1764089374607,3.03034334,135.89,135.86,0.05374502]
[1764089375009,0.05034334,135.89,135.86,0.05374502]
[1764089376314,3.03034334,135.89,135.86,0.05374502]
[1764089377908,9.65774334,135.89,135.86,0.05374502]
[1764089380414,0.05034334,135.89,135.86,0.05374502]
[1764089380909,6.67774334,135.89,135.86,0.05374502]
[1764089381616,0.05034334,135.89,135.86,0.05374502]
[1764089382113,0.05034334,135.89,135.86,25.35374502]
[1764089382304,6.67784334,135.89,135.86,25.35374502]
[1764089382704,9.65784334,135.89,135.86,0.05374502]
[1764089383111,6.67784334,135.89,135.86,0.05374502]
[1764089388908,6.67784334,135.89,135.86,6.68244502]
[1764089388909,0.05034334,135.89,135.86,6.68244502]
[1764089389818,0.05034334,135.89,135.86,0.05374502]
[1764089390208,6.67774334,135.89,135.86,0.05374502]
[1764089394018,9.66774334,135.89,135.86,0.05374502]
[1764089394521,0.05034334,135.89,135.86,0.05374502]
[1764089395315,6.67774334,135.89,135.86,0.05374502]
[1764089395509,6.67774334,135.89,135.87,25.3]
[1764089396820,9.6179,135.88,135.86,0.05374502]
[1764089397024,2.99,135.88,135.87,25.3]
[1764089397322,2.99,135.88,135.86,0.05374502]
[1764089397514,2.99,135.88,135.86,25.35374502]
[1764089398120,9.6179,135.88,135.86,25.35374502]
[1764089400221,0.05034334,135.89,135.86,25.35374502]
[1764089400427,2.89,135.95,135.86,25.35374502]
[1764089400631,2.89,135.95,135.86,128.4122]
[1764089400919,2.89,135.94,135.87,11.32120912]
[1764089401128,2.89,135.97,135.88,103.1008]
[1764089401318,2.89,135.97,135.87,114.42700912]
[1764089401519,0.04787265,135.93,135.91,0.05096102]
[1764089402624,0.04787265,135.93,135.92,4.25781292]
[1764089402837,2.89,136.02,135.92,4.25781292]
[1764089403030,2.89,136.05,135.97,4.25781292]
[1764089403231,2.89,136.09,136.0,6.6218]
[1764089403432,2.89,136.08,135.99,4.25781292]
[1764089403728,2.89,136.04,136.0,25.3]
[1764089403918,0.04747911,136.03,136.01,0.0503961]
[1764089405128,0.04747911,136.03,136.01,4.30820902]
[1764089405824,0.04747911,136.03,136.01,10.92950902]
[1764089406221,0.04747911,136.03,136.02,25.3]
[1764089406426,2.89,136.1,136.03,6.6201]
[1764089406627,2.89,136.1,136.04,4.25781292]
[1764089407124,9.5073,136.1,136.04,4.25781292]
[1764089407328,0.04741176,136.08,136.06,0.05331074]
[1764089407524,2.93741176,136.08,136.06,0.05331074]
[1764089407827,0.04741176,136.08,136.07,25.3]
[1764089408028,0.04741176,136.08,136.06,0.05331074]
[1764089408229,0.04741176,136.08,136.06,25.35331074]
[1764089409022,0.04741176,136.08,136.07,25.28]
[1764089411633,0.04741176,136.08,136.06,0.05331074]
[1764089411634,2.93741176,136.08,136.06,0.05331074]
[1764089413736,2.93741176,136.08,135.97,114.30722037]
[1764089413940,2.89,136.07,135.99,25.28]
[1764089414323,2.89,136.07,136.0,103.0074]
[1764089414827,0.0537289,136.05,136.02,0.05638213]
[1764089415026,0.0537289,136.05,136.03,6.6204]
[1764089416935,0.0537289,136.05,136.04,25.28]
[1764089422438,3.11,136.13,136.05,102.9705]
[1764089423631,0.05300055,136.1,136.08,6.66652347]
[1764089423836,3.16300055,136.1,136.09,25.26]
[1764089425439,0.05300055,136.1,136.09,25.26]
[1764089429140,3.16300055,136.1,136.08,0.04842347]
[1764089430148,3.11,136.09,136.08,0.04842347]
[1764089431044,0.05300055,136.1,136.08,2.76977784]
[1764089432153,3.16300055,136.1,136.08,6.66642347]
[1764089432340,3.16300055,136.1,136.08,0.04842347]
[1764089432643,3.16300055,136.1,136.09,25.26]
[1764089433753,3.16300055,136.1,136.08,0.04842347]
[1764089433950,3.11,136.09,136.01,2.72135437]
[1764089434150,3.11,136.09,136.03,25.26]
[1764089434753,3.11,136.08,136.03,31.8805]
[1764089435058,3.11,136.06,136.04,0.05451957]
[1764089436449,5.83135437,136.06,135.98,62.0]
[1764089436654,5.83135437,136.06,135.99,27.98135437]
[1764089436655,3.11,136.05,135.99,27.98135437]
[1764089436850,3.11,136.05,135.98,2.72135437]
[1764089437158,3.11,136.05,135.99,31.8823]
[1764089437356,3.11,136.05,135.96,103.0375]
[1764089437658,3.16173129,136.02,135.99,0.05199928]
[1764089437852,3.15655021,136.02,135.99,0.05075095]
[1764089438057,3.15655021,136.02,135.99,6.67315095]
[1764089438256,3.15655021,136.02,135.99,0.05075095]
[1764089438455,0.04655021,136.02,135.99,105.78610532]
[1764089438757,0.04655021,136.02,135.99,103.06475095]
[1764089438947,0.04655021,136.02,136.0,6.4826878]
[1764089439147,0.04655021,136.02,136.0,13.1045878]
[1764089439666,0.04655021,136.02,136.0,75.1045878]
[1764089440355,0.04655021,136.02,136.01,25.26]
[1764089442759,0.04655021,136.02,136.0,6.6219]
[1764089443059,0.04655021,136.02,136.01,25.26]
[1764089443761,0.04655021,136.02,136.0,6.6219]
[1764089443962,0.04655021,136.02,136.01,25.26]
[1764089446353,3.15655021,136.02,136.01,25.26]
[1764089448358,3.15655021,136.02,136.0,6.6219]
[1764089448559,3.15655021,136.02,136.0,31.8819]
[1764089451260,3.15655021,136.02,136.0,6.6219]
[1764089451461,3.15655021,136.02,136.01,25.26]
[1764089451667,3.15655021,136.02,136.0,6.6219]
[1764089451967,3.15655021,136.02,136.01,25.28]
[1764089452364,0.04655021,136.02,136.01,25.28]
[1764089456859,3.10655021,136.02,136.0,6.6219]
[1764089457158,3.10655021,136.02,136.01,25.28]
[1764089457765,0.04655021,136.02,136.01,25.28]
[1764089458069,0.04655021,136.02,136.01,31.9015]
[1764089460668,0.04655021,136.02,136.01,34.62374736]
[1764089460864,3.19,136.07,136.01,28.00224736]
[1764089461176,3.19,136.07,136.04,2.72224736]
[1764089461374,3.19,136.11,136.05,25.28]
[1764089461573,9.807,136.11,136.1,1.79133439]
[1764089461770,3.19,136.1,136.05,25.28]
[1764089461966,3.19,136.08,136.06,0.05247485]
[1764089462167,3.19,136.08,136.05,25.28]